Cogmind - Beta 17.1 @@@ ROGUE MODE // 2026.09.11 @ 16:55:31 Player: cptwinky Result: Core destroyed Performance ------------- Evolutions (9) 4500 Regions Visited (12) 2400 Robots Destroyed (270) 1350 Value Destroyed (12160) 12160 Prototype IDs (39) 780 Alien Tech Used (0) 0 Bonus (1777) 1777 TOTAL SCORE: 22967 Bonus ------- High Alert Combat Kills 1246 Follower Combat Kills 67 Scanned by Researcher 500 Friendly Fire -36 Cogmind --------- Core Integrity 0/1600 Matter 285/300 Energy 94/100 System Corruption 10% Temperature Cool (0) Movement Core (50) Location -1/Access Parts ------- > --- POWER (1) -------- (None) > --- PROPULSION (2) --- (None) > --- UTILITY (4) ------ (None) > --- WEAPON (18) ------ (None) > --- INVENTORY (5) ---- Compact Wheel Centrium Wheel High-capacity Matter Pod (200) Backup Laser VII Improved Plasma Cutter Peak State ------------ > --- POWER ------------ Enhanced Fission Core > --- PROPULSION ------- Centrium Wheel Centrium Wheel > --- UTILITY ---------- Advanced Heat Sink High-capacity Storage Unit Core Analyzer Improved Phase Shifter > --- WEAPON ----------- Dispersion Rifle Warp Gun Quantum Rifle Heavy Quantum Rifle High-powered Shotgun High-powered Shotgun Coil Gun Coil Gun Coil Gun Railgun Enhanced Hardcell Cannon Omega Cannon Great Axe Great Axe Force Lance Force Lance > --- INVENTORY -------- Light Particle Reactor Light Quantum Reactor Heavy Siege Treads Armored Heavy Treads Compact Wheel Centrium Wheel Field Propulsion Array Advanced Heat Sink Experimental Energy Well High-capacity Matter Pod Improved Transmission Jammer Graphene Brace High-powered Tractor Beam Improved Field Recycling Unit Matter Neutralizer Improved Plasma Cutter Power Maul [Rating: 171] Favorites ----------- Power Reinforced Ion Engine Engine Reinforced Ion Engine Power Core Backup Power VII Reactor Light Antimatter Reactor Propulsion Light Treads Treads Light Treads Wheel Centrium Wheel Flight Unit Field Propulsion Array Utility Large Storage Unit Device Advanced Heat Sink Storage Large Storage Unit Processor Core Analyzer Hackware Hacking Suite Protection Improved Light Armor Plating Weapon Gauss Rifle Energy Gun Arc Projector Energy Cannon Compact HERF Cannon Ballistic Gun Gauss Rifle Ballistic Cannon Heavy Gauss Cannon Launcher Heavy Shock Bomb Launcher Special Weapon Multitool Impact Weapon Power Maul Slashing Weapon Great Axe Piercing Weapon Force Lance Special Melee Weapon Datajack Build | -11 -10 -10 -8 -8 -7 -6 -5 -4 -3 -3 -2 -1 ------- Run | Yrd Mat Sub Mat Sto Fac Fac Fac Fac Res Tes Res Acc Slots Evolved 18 | . . . 4 . 2 2 2 2 2 . 2 2 Power . | . . . . . . . . . . . . . Propulsion . | . . . . . . . . . . . . . Utility 2 | . . . 2 . . . . . . . . . Weapon 16 | . . . 2 . 2 2 2 2 2 . 2 2 Parts Attached 228 | 7 13 12 16 16 20 12 14 36 27 5 2 48 Power 22 | 1 1 1 2 . 1 1 2 3 4 1 . 5 Engine 10 | 1 1 1 2 . 1 1 1 2 . . . . Core 3 | . . . . . . . 1 . 1 1 . . Reactor 9 | . . . . . . . . 1 3 . . 5 Propulsion 38 | 2 2 2 2 6 2 5 3 6 1 . . 7 Treads 26 | 2 1 2 2 6 2 3 2 3 1 . . 2 Leg . | . . . . . . . . . . . . . Wheel 11 | . 1 . . . . 2 1 3 . . . 4 Hover . | . . . . . . . . . . . . . Flight 1 | . . . . . . . . . . . . 1 Utility 64 | 1 3 3 6 2 8 2 5 7 7 . . 20 Device 33 | . . 2 3 . 4 1 2 5 4 . . 12 Storage 6 | 1 1 . . . 1 . . . 1 . . 2 Processor 8 | . . . 2 . 1 1 . 1 1 . . 2 Hackware 1 | . . . . . . . 1 . . . . . Protection 16 | . 2 1 1 2 2 . 2 1 1 . . 4 Artifact . | . . . . . . . . . . . . . Weapon 104 | 3 7 6 6 8 9 4 4 20 15 4 2 16 Energy Gun 27 | 3 1 . 2 1 1 . 1 5 3 2 . 8 Energy Cannon 3 | . 1 . . . . . . . 1 . . 1 Ballistic Gun 51 | . 2 3 3 6 7 3 3 11 6 1 . 6 Ballistic Cannon 5 | . . 1 . . . . . 2 . 1 . 1 Launcher 5 | . 1 1 1 . . 1 . . 1 . . . Special Weapon 2 | . 1 . . 1 . . . . . . . . Impact Weapon 2 | . . 1 . . 1 . . . . . . . Slashing Weapon 6 | . . . . . . . . 2 4 . . . Piercing Weapon 2 | . . . . . . . . . . . 2 . Special Melee Weapon 1 | . 1 . . . . . . . . . . . Unidentified Prototypes 15 | . . 1 . 3 . . . 2 2 4 . 3 Parts Lost 95 | . . 1 1 2 . . 2 30 8 . . 51 Power 7 | . . 1 . . . . . 2 . . . 4 Propulsion 11 | . . . . . . . 1 5 . . . 5 Utility 16 | . . . . 1 . . . 3 1 . . 11 Weapon 61 | . . . 1 1 . . 1 20 7 . . 31 Highest Loss Streak 11 | . . 1 1 2 . . 2 11 6 . . 11 To Critical Strikes 2 | . . . . . . . . 1 1 . . . Average Backups 17 | 4 13 14 13 13 14 23 23 23 19 17 17 15 Power 1 | . 1 . . 2 1 1 1 3 2 2 2 1 Propulsion 4 | 2 3 2 2 2 3 7 6 6 5 4 4 4 Utility 6 | . 3 4 2 2 4 11 11 10 8 7 7 6 Weapon 3 | 1 5 5 6 4 3 2 2 . 1 1 2 1 Tool/Special . | . . . . . . . . . . . . . Unused Backups 42 | . 4 4 3 2 2 3 3 6 11 1 . 3 Power 5 | . . . . . . 1 . 2 2 . . . Propulsion 15 | . 2 3 1 . 1 1 1 . 5 . . 1 Utility 14 | . 1 . . 1 1 1 2 4 2 1 . 1 Weapon 5 | . 1 1 2 1 . . . . . . . . Tool/Special 3 | . . . . . . . . . 2 . . 1 Average Slot Usage (%) 91 | . 99 99 93 97 99 98 95 84 90 95 91 56 Engine 6 | . 14 13 7 8 7 6 3 2 . . . . Treads 12 | . 27 27 14 16 15 10 2 4 . . . 1 Wheel 2 | . . . . . . 2 8 5 8 8 7 4 Device 7 | . . 13 3 3 6 6 4 9 9 9 8 8 Storage 7 | . 17 13 7 8 7 6 5 5 4 4 4 3 Processor 3 | . . . 5 5 4 6 5 2 3 4 4 2 Protection 5 | . 10 . 8 15 9 6 4 2 . . . 1 Energy Gun 5 | . 14 . 12 2 3 5 5 8 3 6 13 9 Ballistic Gun 29 | . 12 25 30 35 40 44 45 28 24 30 26 9 Ballistic Cannon 1 | . . . . . . . . 3 6 3 4 2 Impact Weapon 1 | . . 1 . . 1 . 3 5 . . . . Slashing Weapon 2 | . . . . . . . . 3 13 14 13 2 Peak Build Rating 171 | 6 10 25 44 37 47 60 76 111 137 143 157 171 Average Rating 58 | 5 8 13 38 34 40 55 64 87 120 134 151 107 On Entrance 62 | . 6 10 25 36 34 47 58 75 101 126 143 157 Avg Prop Armor Cover (%) 5 | . 10 . . . . 4 5 5 . . . . Naked Turns . | . . . . . . . . . . . . . Heaviest Build 192 | 14 34 43 59 53 118 139 143 178 192 139 159 164 Greatest Support 75 | 40 40 40 40 40 40 40 40 40 70 70 70 75 Greatest Overweight (x) 11 | . 1 1 1 1 2 7 8 11 5 4 4 5 Average Overweight (x) 2 | . . . 1 1 1 4 4 7 3 3 3 1 Largest Inventory Capacity 25 | 8 15 15 15 15 25 25 25 25 25 20 20 20 Average Capacity 18 | 7 14 15 15 15 17 25 25 25 21 20 20 18 Most Carried 25 | 8 15 15 15 15 24 25 25 25 25 20 20 20 Average Carried 18 | 4 14 14 14 14 15 24 24 23 21 19 19 17 Final Capacity 25 | 8 15 15 15 15 25 25 25 25 20 20 20 5 Final Carried 25 | 8 15 13 15 15 24 25 25 25 20 20 20 5 Class Distribution -------------------- 43% | Scavenger-Executioner 26% | Mutant 8% | Executioner 7% | Scavenger-Gunner 6% | Scientist-Executioner 5% | Scavenger-Tank Dominant Class ---------------- Mutant | -10/Materials Mutant | -10/Subcaves Executioner | -8/Materials Scavenger-Gunner | -8/Storage Scavenger-Executioner | -7/Factory Scavenger-Executioner | -6/Factory Scientist-Executioner | -5/Factory Executioner | -4/Factory Scavenger-Executioner | -3/Research Scavenger-Executioner | -3/Testing Scavenger-Executioner | -2/Research Scavenger-Executioner | -1/Access Resources | -11 -10 -10 -8 -8 -7 -6 -5 -4 -3 -3 -2 -1 ----------- Run | Yrd Mat Sub Mat Sto Fac Fac Fac Fac Res Tes Res Acc Matter Collected 10723 | 280 366 679 496 953 1621 956 688 1815 595 148 194 1932 Remotely 1492 | . . . . . 132 . . 515 60 . . 785 Salvage Created 12949 | 137 438 169 965 1716 1838 1055 418 2905 1121 137 114 1936 Parts 666 | 9 25 6 53 109 98 48 18 127 60 11 6 96 Haulers Intercepted 12 | . 2 . 2 6 . . . 1 1 . . . Recyclers Shooed 13 | . 3 . 1 2 1 1 1 1 1 . 1 1 Parts Field Recycled 83 | . . . . . . 18 5 17 20 . 9 14 Retrieved Matter 1193 | . . . . . . 199 94 274 389 . 145 92 Parts Self-Destructed 8 | . . 8 . . . . . . . . . . Prevented . | . . . . . . . . . . . . . Parts Restored . | . . . . . . . . . . . . . Kills | -11 -10 -10 -8 -8 -7 -6 -5 -4 -3 -3 -2 -1 ------- Run | Yrd Mat Sub Mat Sto Fac Fac Fac Fac Res Tes Res Acc Combat Hostiles Destroyed 211 | . 13 1 21 26 33 11 4 46 15 3 3 35 Melee 11 | . . . . . . . . 1 2 . . 8 Guns 155 | . 5 1 17 26 33 8 4 35 8 . . 18 Cannons 15 | . . . . . . . . . 2 3 3 7 AOE 27 | . 8 . 4 . . 3 . 9 3 . . . Classes Destroyed 21 | 2 4 3 4 2 3 . . . . 1 . 2 Worker 9 | . . . . 2 2 2 . 1 . . . 2 Builder 7 | . . . . . 1 3 . 2 . . . 1 Tunneler 4 | 2 1 . . . . . . 1 . . . . Hauler 12 | . 2 . 2 6 . . . 1 1 . . . Recycler 14 | 1 . . . 4 2 4 1 1 1 . . . Mechanic 1 | . . . . 1 . . . . . . . . Operator 5 | . 1 . . . . 2 1 . . . . 1 Turret 2 | . . 2 . . . . . . . . . . Watcher 4 | . . . 1 . . 2 . 1 . . . . Swarmer 50 | . 6 1 5 7 3 3 . 12 3 . . 10 Grunt 66 | . 7 . 10 4 15 6 . 17 . . . 7 Brawler 2 | . . . . . 2 . . . . . . . Duelist 3 | . . . 2 . 1 . . . . . . . Researcher 1 | . . . . . . . . . . 1 . . Sentry 34 | . . . 3 14 5 1 2 2 4 . 1 2 Hunter 18 | . . . 1 1 2 . . 8 2 . . 4 Programmer 33 | . . . . . 5 1 2 7 6 3 2 7 Q-Series 4 | . . . . . . . . . . . . 4 Behemoth 1 | . . . . . . . . . . . . 1 Artisan 3 | . . 3 . . . . . . . . . . Cobbler 1 | . . 1 . . . . . . . . . . Best Kill Streak 12 | 3 4 3 8 7 5 12 3 6 4 2 2 7 Combat Bots Only 8 | . 3 1 8 5 4 3 3 5 3 2 2 6 Max Kills in Single Turn 3 | 1 2 1 3 2 2 2 2 3 2 1 1 2 Gunslinging 1 | . 1 . 1 1 1 1 1 1 . . . 1 Exploded 3 | . 2 . 3 . . 1 . 3 2 . . . Melee 1 | . . . . . . . . 1 1 . . 1 Uniques/NPCs Destroyed . | . . . . . . . . . . . . . Combat | -11 -10 -10 -8 -8 -7 -6 -5 -4 -3 -3 -2 -1 -------- Run | Yrd Mat Sub Mat Sto Fac Fac Fac Fac Res Tes Res Acc Hostile Shots Fired 1507 | . 18 12 48 63 111 32 18 454 143 18 11 579 Missed 454 | . 8 7 14 13 34 10 4 137 36 11 6 174 Hits 1053 | . 10 5 34 50 77 22 14 317 107 7 5 405 Melee 4 | . . . 2 . 2 . . . . . . . Projectile 1049 | . 10 5 32 50 75 22 14 317 107 7 5 405 AOE 14 | . . 2 . . . . . . . . . 12 Critical Strikes 41 | . . . 2 1 2 1 1 21 5 1 1 6 Part Disruptions 2 | . . . . . 1 . . 1 . . . . Damage Taken 22122 | . 252 255 559 827 1245 397 387 5813 1972 104 123 10188 Core 2915 | . 25 67 97 69 168 46 43 497 257 . 24 1622 Absorbed by Shields . | . . . . . . . . . . . . . Reduced by Siege Mode 323 | . . . . . . . . . . . . 323 Redirected to Shielding 132 | . . . . . . . . . 54 . . 78 Regen/Repaired (Parts) 397 | . . . . 187 112 . . 98 . . . . Core Remaining (%) 81 | 100 . 63 . 69 76 94 95 56 . 80 98 . Volleys Fired 447 | 21 29 31 22 51 68 32 7 71 26 9 6 74 Largest 12 | 1 2 2 6 5 6 8 8 9 8 1 1 12 Hottest 625 | 40 100 46 216 137 195 255 269 438 412 100 100 625 Shots Fired 1736 | 21 45 49 117 210 321 130 49 383 118 10 6 277 Gun 1620 | 21 33 41 115 210 321 126 49 376 98 3 . 227 Cannon 86 | . 6 . . . . . . . 17 7 6 50 Launcher 29 | . 5 8 2 . . 4 . 7 3 . . . Special 1 | . 1 . . . . . . . . . . . Kinetic 1368 | . 2 37 80 209 299 98 45 308 103 9 6 172 Thermal 218 | 21 7 . . 1 18 . . 57 11 1 . 102 Explosive 26 | . 5 8 2 . . 4 . 7 . . . . Electromagnetic 124 | . 31 4 35 . 4 28 4 11 4 . . 3 Robot Hit Streak 36 | 7 5 12 9 36 11 15 10 15 13 6 12 31 Robot Miss Streak 6 | 2 4 4 3 3 5 4 2 3 2 . . 6 Penetration Max 1 | . . . . . 1 1 1 1 1 . . 1 Secondary Targets 37 | . 1 . 5 2 5 1 1 16 . . . 6 Max Gunslinging Chain 2 | . 1 . 2 1 2 1 1 1 . . . 1 Shots Hit Robots 1141 | 15 24 29 67 129 183 77 35 245 93 6 6 232 Core Hits 586 | 4 22 16 45 64 103 67 14 125 39 1 2 84 Critical Kills 15 | . . . . 1 3 . . 9 1 . . 1 Critical Parts Destroyed 26 | . . . . . 2 1 3 10 . . . 10 Critical Strikes 62 | . 1 . . 1 6 1 3 24 3 . 1 22 Burn 1 | . . . . . 1 . . . . . . . Destroy 39 | . . . . 1 5 1 3 19 1 . . 9 Blast 7 | . . . . . . . . . . . 1 6 Corrupt 1 | . 1 . . . . . . . . . . . Smash 2 | . . . . . . . . . . . . 2 Sever 7 | . . . . . . . . 5 2 . . . Impale 5 | . . . . . . . . . . . . 5 Melee Attacks 181 | . . 32 1 3 5 9 16 21 26 8 . 60 Impact 82 | . . 31 . 3 5 7 16 7 5 . . 8 Slashing 43 | . . . . . . . . 14 21 8 . . Piercing 52 | . . . . . . . . . . . . 52 Sneak Attacks 8 | . . 1 1 . . 2 1 . 3 . . . Combat Hostiles . | . . . . . . . . . . . . . Follow-up Attacks 13 | . . . . . . . . 4 5 . . 4 Damage Inflicted 34008 | 167 900 542 1642 2303 3658 2523 779 7470 3556 676 704 9088 Guns 22374 | 167 263 371 1399 2299 3649 1420 681 5483 2218 . . 4424 Cannons 4699 | . 70 . . . . . . . 215 676 690 3048 Explosions 3973 | . 567 171 231 . . 1103 . 1357 444 . . 100 Melee 2912 | . . . . . . . 98 630 679 . . 1505 Ramming 50 | . . . 12 4 9 . . . . . 14 11 Kinetic 21706 | . 30 326 963 2279 3325 1206 642 4218 2127 676 690 5224 Thermal 4796 | 167 247 . 57 20 285 261 . 1107 432 . . 2220 Explosive 2928 | . 390 171 174 . . 842 . 1351 . . . . Electromagnetic 1616 | . 233 45 436 . 39 214 39 164 318 . . 128 Impact 413 | . . . . . . . 98 126 . . . 189 Slashing 1183 | . . . . . . . . 504 679 . . . Piercing 1316 | . . . . . . . . . . . . 1316 Highest Corruption 10 | . . . . 2 . . 1 8 7 7 . 10 Average Corruption 3 | . . . . 1 . . 1 4 4 7 . 5 Corruption Purged 1 | . . . . . . . . . 1 . . . Corruption Blocked 1 | . . . . . 1 . . . . . . . Effects 112 | . . . . 17 . . 2 31 16 14 . 32 Message Errors 31 | . . . . 4 . . . 5 7 6 . 9 Matter Fused 20 | . . . . 3 . . . 9 2 1 . 5 Heat Flow Errors 12 | . . . . 2 . . . 2 1 2 . 5 Energy Discharges 11 | . . . . 1 . . . 4 2 2 . 2 Parts Rejected 3 | . . . . . . . . 1 . . . 2 Data Loss (minor) 13 | . . . . 2 . . 1 3 2 1 . 4 Data Loss (major) 7 | . . . . 1 . . . 3 1 1 . 1 Misfires 10 | . . . . 3 . . . 3 . 1 . 3 Alerts 3 | . . . . . . . 1 1 1 . . . Weapon Failures 2 | . . . . 1 . . . . . . . 1 Overload Shots . | . . . . . . . . . . . . . Overflow Damage 1416 | . 22 . 5 . . 143 38 53 57 250 182 666 Projectiles 1008 | . . . . . . . . . . 250 182 576 Explosions 266 | . 22 . 5 . . 143 . 42 54 . . . Melee 142 | . . . . . . . 38 11 3 . . 90 Knockbacks 21 | . . . . . . . 1 . 1 2 2 15 Impact 2 | . . . . . . . 1 . . . 1 . Kinetic 17 | . . . . . . . . . 1 2 1 13 Secondary 2 | . . . . . . . . . . . . 2 Self-Inflicted Damage 348 | . 144 . 28 . . 12 . 137 . . . 27 Shots 11 | . 5 . 1 . . 1 . 3 . . . 1 Rammed 7 | . . . 1 1 1 . . . . . 2 2 Targets Rammed 7 | . . . 1 1 1 . . . . . 2 2 Kicked . | . . . . . . . . . . . . . Crushed . | . . . . . . . . . . . . . Highest Temperature 422 | . 129 . 244 230 336 255 315 422 304 236 . 384 Average Temperature 90 | . 36 . 92 55 79 79 122 148 113 100 . 110 Received Heat Transfer 2480 | . 54 6 261 252 195 117 45 605 72 . . 873 Effects 8 | . . . . . . . 1 1 . . . 6 Energy Bleed 1 | . . . . . . . . . . . . 1 Interference 5 | . . . . . . . 1 . . . . 4 Matter Decay 1 | . . . . . . . . . . . . 1 Short Circuit 1 | . . . . . . . . 1 . . . . Siege Activations 4 | . . . . . . . . . . . 1 3 Total Turns 158 | . . . . . . . . . . . 5 153 Longest Duration 100 | . . . . . . . . . . . 5 100 Martial Activations . | . . . . . . . . . . . . . Shielding Activations . | . . . . . . . . . . . . . Robots Disrupted 4 | . . . 1 . 1 1 . 1 . . . . Combat Hostiles 3 | . . . 1 . 1 . . 1 . . . . Robots Corrupted 3 | . . . . . . . 1 1 . . . 1 Combat Hostiles 2 | . . . . . . . . 1 . . . 1 Parts Fried 5 | . 1 . . . . . 3 . 1 . . . Impact Corruptions 4 | . . . . . . . 1 1 . . . 2 Robots Melted 1 | . . . . . . . . . . . . 1 Combat Hostiles 1 | . . . . . . . . . . . . 1 Parts Melted 16 | . . . 1 . 2 . . 6 1 . . 6 Heat Transferred 6133 | 375 298 . 50 37 592 200 . 1704 383 . . 2494 Parts Sabotaged . | . . . . . . . . . . . . . Parts Stolen . | . . . . . . . . . . . . . Parts Stripped . | . . . . . . . . . . . . . Power Chain Reactions 4 | . 1 . 1 . . 1 . . 1 . . . Alert | -11 -10 -10 -8 -8 -7 -6 -5 -4 -3 -3 -2 -1 ------- Run | Yrd Mat Sub Mat Sto Fac Fac Fac Fac Res Tes Res Acc Maximum Alert Level 3 | . 1 . 2 1 2 1 . 3 2 1 . 1 Low Security (%) 62 | 100 96 . 75 94 50 84 100 14 . 56 100 60 Level 1 14 | . 3 . 12 5 10 15 . 6 25 43 . 39 Level 2 15 | . . . 12 . 38 . . 16 74 . . . Level 3 8 | . . . . . . . . 62 . . . . Level 4 . | . . . . . . . . . . . . . Level 5 . | . . . . . . . . . . . . . High Security . | . . . . . . . . . . . . . Max Security . | . . . . . . . . . . . . . Peak Influence 929 | 10 211 . 520 228 584 365 192 929 474 239 124 290 Initial 474 | . . . 93 219 40 279 172 13 474 234 114 7 Average 229 | . 116 . 189 101 256 100 57 622 419 196 56 142 Influence Increases 7807 | 15 503 234 751 840 1028 529 198 1755 514 200 80 1160 Destroy 0b10 Robot/C 4300 | . 260 80 420 520 660 220 80 920 300 80 60 700 Destroy 0b10 Robot/NC 280 | 15 20 . 15 65 25 65 10 35 10 . . 20 Destroy Leader 1072 | . 64 . 86 192 180 54 30 194 92 20 20 140 Allied During Kill 7 | . . 4 3 . . . . . . . . . Trap Triggered on 0b10 30 | . 20 . . . . 10 . . . . . . Successful Hack 292 | . 23 . 26 26 49 27 8 52 . 30 . 51 Disable Machine 480 | . 45 . 15 15 75 75 60 135 . 45 . 15 Anti-Garrison Action 350 | . . . 150 . . . . 200 . . . . Destroy Structure 501 | . 71 . 36 7 9 78 10 144 52 10 . 84 Partial Spotted 75 | . . . . 15 . . . 15 15 . . 30 Lose Combat Pursuer 420 | . . 150 . . 30 . . 60 45 15 . 120 Influence Decreases 7614 | 15 406 151 411 1270 548 746 523 879 1000 414 272 979 Entered New Map 1681 | . . 47 87 301 50 291 181 15 430 184 90 5 Time Decay 4597 | 15 406 64 294 583 498 455 342 564 490 230 182 474 Lost Part 910 | . . . 10 20 . . . 300 80 . . 500 Lost Ally 60 | . . 40 20 . . . . . . . . . Purge Threat 366 | . . . . 366 . . . . . . . . Squads Dispatched 75 | . 3 . 7 7 17 6 2 17 4 3 1 8 Investigation 12 | . 1 . 3 . 2 . . 5 . . . 1 Extermination 24 | . . . . . 5 2 1 5 3 2 1 5 Reinforcement 10 | . 2 . . 1 1 1 . 1 1 1 . 2 Assault 4 | . . . 2 . . . . 2 . . . . Garrison 25 | . . . 2 6 9 3 1 4 . . . . Intercept . | . . . . . . . . . . . . . Searches Triggered . | . . . . . . . . . . . . . Construction Impeded 5 | . . . . 1 . 1 . 1 . . . 2 Haulers Reinforced 1 | . . . . . . . . . 1 . . . Active Scanning Responses . | . . . . . . . . . . . . . Cargo Convoy Interrupts . | . . . . . . . . . . . . . Stealth | -11 -10 -10 -8 -8 -7 -6 -5 -4 -3 -3 -2 -1 --------- Run | Yrd Mat Sub Mat Sto Fac Fac Fac Fac Res Tes Res Acc Distress Signals 14 | . 2 . . 2 . 1 . 3 . 2 . 4 Communications Jammed . | . . . . . . . . . . . . . Distress Signals . | . . . . . . . . . . . . . Times Spotted 328 | . 21 12 30 33 37 19 5 62 18 10 3 78 Peak Tracking Total 20 | . 4 5 8 5 4 3 3 6 5 3 1 20 Tactical Retreats 22 | . . 3 . . 2 . . 4 3 1 . 9 ECM-based Alert Blocks 2 | . . . . . . . . . . . . 2 Traps | -11 -10 -10 -8 -8 -7 -6 -5 -4 -3 -3 -2 -1 ------- Run | Yrd Mat Sub Mat Sto Fac Fac Fac Fac Res Tes Res Acc Traps Triggered 15 | . 2 . 1 3 3 . 1 3 . . . 2 Indirectly 1 | . . . . . . . . . . . . 1 Trap Hack Attempts 106 | . 43 . . 4 . 59 . . . . . . Triggered 1 | . 1 . . . . . . . . . . . Disarmed . | . . . . . . . . . . . . . Reprogrammed 8 | . 3 . . 2 . 3 . . . . . . Reused 3 | . 2 . . . . 1 . . . . . . Traps Extracted . | . . . . . . . . . . . . . Installed . | . . . . . . . . . . . . . Triggered 3 | . 2 . . . . 1 . . . . . . Machines | -11 -10 -10 -8 -8 -7 -6 -5 -4 -3 -3 -2 -1 ---------- Run | Yrd Mat Sub Mat Sto Fac Fac Fac Fac Res Tes Res Acc Machines Disabled 37 | . 3 3 2 1 5 5 4 9 . 4 . 1 Max in Single Turn 5 | . 2 1 1 1 1 5 1 2 . 1 . 1 Garrison Access 2 | . . . 1 . . . . 1 . . . . Machines Repaired . | . . . . . . . . . . . . . Machines Dismantled . | . . . . . . . . . . . . . Machines Sabotaged . | . . . . . . . . . . . . . Overloaded Fab Kills . | . . . . . . . . . . . . . Hacking | -11 -10 -10 -8 -8 -7 -6 -5 -4 -3 -3 -2 -1 --------- Run | Yrd Mat Sub Mat Sto Fac Fac Fac Fac Res Tes Res Acc Machines Accessed 66 | . 4 1 3 12 11 5 8 7 3 5 . 7 Terminals 30 | . 3 . 1 7 5 5 2 2 . 2 . 3 Fabricators 3 | . . . . . 2 . 1 . . . . . Repair Stations 9 | . 1 . . 2 1 . 1 1 1 1 . 1 Recycling Units 5 | . . . . 2 1 . 2 . . . . . Scanalyzers 10 | . . . 1 . 1 . 1 2 2 1 . 2 Garrison Access 8 | . . . 1 1 1 . 1 2 . 1 . 1 Total Hacks 142 | . 14 1 7 38 21 5 21 11 4 10 . 10 Successful 60 | . 6 1 3 20 10 2 8 6 . 2 . 2 Failed 79 | . 7 . 4 18 11 3 12 4 4 8 . 8 Catastrophic 21 | . . . 1 1 3 2 3 1 2 4 . 4 Database Lockouts 3 | . 1 . . . . . 1 1 . . . . Manual 44 | . 5 . . 9 7 4 7 5 1 6 . . Terminals 52 | . 8 . 2 16 6 5 2 3 . 6 . 4 Fabricators 6 | . . . . . 4 . 2 . . . . . Repair Stations 28 | . 6 . . 13 4 . 1 1 1 1 . 1 Recycling Units 14 | . . . . 5 3 . 6 . . . . . Scanalyzers 26 | . . . 3 . 3 . 6 5 3 2 . 4 Garrison Access 15 | . . . 2 4 1 . 4 2 . 1 . 1 Terminal Hacks 17 | . 3 1 1 8 . 1 1 1 . 1 . . Robot Analysis 3 | . 1 . 1 1 . . . . . . . . Prototype ID Bank 3 | . 1 . . 2 . . . . . . . . Open Door 2 | . . . . 2 . . . . . . . . Level Access Points 1 | . . . . . . . 1 . . . . . Branch Access Points 2 | . . . . . . 1 . 1 . . . . Unreport Threat 3 | . . . . 3 . . . . . . . . Zone Layout 2 | . 1 . . . . . . . . 1 . . Proto ID Catalog 1 | . . 1 . . . . . . . . . . Fabricator Hacks 2 | . . . . . 1 . 1 . . . . . Network Status 2 | . . . . . 1 . 1 . . . . . Repair Station Hacks 16 | . 3 . . 8 4 . . . . . . 1 Scan Component 7 | . . . . 5 2 . . . . . . . Repair 5 | . . . . 3 2 . . . . . . . Refit 4 | . 3 . . . . . . . . . . 1 Recycling Unit Hacks 2 | . . . . 1 1 . . . . . . . Report Inventory 1 | . . . . 1 . . . . . . . . Retrieve Components 1 | . . . . . 1 . . . . . . . Scanalyzer 12 | . . . 2 . 2 . 4 2 . 1 . 1 Retrieve Study 12 | . . . 2 . 2 . 4 2 . 1 . 1 Garrison Access Hacks . | . . . . . . . . . . . . . Unauthorized Hacks 11 | . . . . 3 2 1 2 3 . . . . Terminals 3 | . . . . 1 . 1 . 1 . . . . Botnet 3 | . . . . 1 . 1 . 1 . . . . Fabricators 2 | . . . . . 1 . 1 . . . . . Haulers 2 | . . . . . 1 . 1 . . . . . Repair Stations 1 | . . . . . . . . 1 . . . . Patch 1 | . . . . . . . . 1 . . . . Recycling Units 4 | . . . . 2 1 . 1 . . . . . Reject 4 | . . . . 2 1 . 1 . . . . . Scanalyzers . | . . . . . . . . . . . . . Garrison Access 1 | . . . . . . . . 1 . . . . Jam 1 | . . . . . . . . 1 . . . . Data Cores Recovered 2 | . . . . . . 1 1 . . . . . Used 1 | . . . . . . . 1 . . . . . Hacking Detections 45 | . 3 . 3 9 7 1 4 3 3 5 . 7 Full Trace Events 8 | . . . 2 1 2 . . 2 . . . 1 Feedback Events . | . . . . . . . . . . . . . Feedback Blocked . | . . . . . . . . . . . . . Robot Schematics Acquired . | . . . . . . . . . . . . . Robots Built . | . . . . . . . . . . . . . Authchips . | . . . . . . . . . . . . . Time . | . . . . . . . . . . . . . Total Robot Build Rating . | . . . . . . . . . . . . . Part Schematics Acquired 6 | . . . . . . . . . . 6 . . Parts Built . | . . . . . . . . . . . . . Authchips . | . . . . . . . . . . . . . Time . | . . . . . . . . . . . . . Total Part Build Rating . | . . . . . . . . . . . . . Part Studies Acquired 12 | . . . 2 . 2 . 4 2 . 1 . 1 Parts Repaired 5 | . . . . 3 2 . . . . . . . Time 242 | . . . . 131 111 . . . . . . . Parts Recycled . | . . . . . . . . . . . . . Recycled Matter . | . . . . . . . . . . . . . Retrieved Matter . | . . . . . . . . . . . . . Retrieved Components 1 | . . . . . 1 . . . . . . . Parts Scanalyzed . | . . . . . . . . . . . . . Part Schematics Acquired . | . . . . . . . . . . . . . Parts Damaged . | . . . . . . . . . . . . . Bothacking | -11 -10 -10 -8 -8 -7 -6 -5 -4 -3 -3 -2 -1 ------------ Run | Yrd Mat Sub Mat Sto Fac Fac Fac Fac Res Tes Res Acc Used RIF Installer . | . . . . . . . . . . . . . Robots Hacked 3 | . . 1 . . . 2 . . . . . . Non-combat 2 | . . . . . . 2 . . . . . . Combat 1 | . . 1 . . . . . . . . . . Robot Hacks Applied 3 | . . 1 . . . 2 . . . . . . parse_system 1 | . . 1 . . . . . . . . . . no_distress 1 | . . . . . . 1 . . . . . . find_chute 1 | . . . . . . 1 . . . . . . Relay Couplers Released 7 | . . . 3 . 4 . . . . . . . Machine Destruction 3 | . . . 3 . . . . . . . . . Programmers 4 | . . . . . 4 . . . . . . . Fabnet Peak Effective % . | . . . . . . . . . . . . . Robots Rewired 1 | . . . 1 . . . . . . . . . Allies Hacked . | . . . . . . . . . . . . . Hacks Repelled . | . . . . . . . . . . . . . Allies | -11 -10 -10 -8 -8 -7 -6 -5 -4 -3 -3 -2 -1 -------- Run | Yrd Mat Sub Mat Sto Fac Fac Fac Fac Res Tes Res Acc Total Allies 10 | . . 9 1 . . . . . . . . . Largest Group 4 | . . 4 1 . . . . . . . . . Highest-Rated Group 76 | . . 76 29 . . . . . . . . . Highest-Rated Ally 29 | . . 20 29 . . . . . . . . . Total Orders . | . . . . . . . . . . . . . Ally Attacks 41 | . . 38 3 . . . . . . . . . Total Damage 647 | . . 590 57 . . . . . . . . . Kills 5 | . . 5 . . . . . . . . . . Allies Corrupted . | . . . . . . . . . . . . . Allies Melted . | . . . . . . . . . . . . . Intel | -11 -10 -10 -8 -8 -7 -6 -5 -4 -3 -3 -2 -1 ------- Run | Yrd Mat Sub Mat Sto Fac Fac Fac Fac Res Tes Res Acc Active Infowar (turns) 1692 | . . 166 . . 456 . 393 . 282 . . 395 Optics 269 | . . . . . . . 269 . . . . . IFF 175 | . . . . . . . . . . . . 175 Seismic 858 | . . 166 . . 456 . 124 . 112 . . . Jamming 289 | . . . . . . . . . 170 . . 119 ECM 101 | . . . . . . . . . . . . 101 Robot Analysis Total 3 | . 1 . 1 1 . . . . . . . . Derelict Logs Recovered 3 | . . 3 . . . . . . . . . . Drone Launches . | . . . . . . . . . . . . . Drone Recoveries . | . . . . . . . . . . . . . Exploration | -11 -10 -10 -8 -8 -7 -6 -5 -4 -3 -3 -2 -1 ------------- Run | Yrd Mat Sub Mat Sto Fac Fac Fac Fac Res Tes Res Acc Turns Passed 17553 | 161 1088 2996 656 2027 2217 1469 1075 1931 1293 491 405 1744 Spaces Moved 7578 | 65 481 1433 196 693 845 487 433 720 637 258 222 1108 Core 5 | 5 . . . . . . . . . . . . Treads 4168 | 60 460 1433 196 693 845 311 52 12 19 2 1 84 Legs . | . . . . . . . . . . . . . Wheels 2853 | . 21 . . . . 176 381 708 618 256 221 472 Hover . | . . . . . . . . . . . . . Flight 552 | . . . . . . . . . . . . 552 Fastest Speed 40 | 50 115 160 230 200 200 145 145 135 140 140 160 40 Average Speed 174 | 151 158 160 247 203 209 246 180 203 162 159 160 101 Slowest Speed 345 | 160 160 250 260 230 240 345 290 290 270 270 270 250 Overloaded Moves . | . . . . . . . . . . . . . Propulsion Burnouts . | . . . . . . . . . . . . . Robots Hopped 22 | . . . . . . . . . . . . 22 Potential Cave-ins 3 | . . . . . . . . . 3 . . . Cave-ins Triggered . | . . . . . . . . . . . . . Exploration Rate (%) 35 | 3 69 86 22 88 28 15 14 20 16 59 6 34 Regions Visited 12 Branch Regions 3 Pre-discovered Areas 1 | . . 1 . . . . . . . . . . Known Exits Taken 3 | . . . 1 . . . 1 1 . . . . Unknown Exits Taken 9 | 1 1 1 . 1 1 1 . . 1 1 1 . Scrap Searched 13 | . . 13 . . . . . . . . . . Spaces Dug 47 | . . . . 1 6 7 5 6 9 4 . 9 Terrain Destroyed 385 | . 70 12 38 1 8 99 6 81 37 6 . 27 Melee 41 | . . . . 1 4 7 5 6 7 3 . 8 Projectile 80 | . . . 5 . 4 1 1 28 19 3 . 19 AOE 264 | . 70 12 33 . . 91 . 47 11 . . . Terrain Rammed . | . . . . . . . . . . . . . Walls Destroyed . | . . . . . . . . . . . . . Machines Disabled . | . . . . . . . . . . . . . Actions | -11 -10 -10 -8 -8 -7 -6 -5 -4 -3 -3 -2 -1 --------- Run | Yrd Mat Sub Mat Sto Fac Fac Fac Fac Res Tes Res Acc Total 10631 | 103 762 2028 305 1189 1146 670 680 966 793 315 260 1414 Wait 1603 | 1 160 475 38 392 156 25 168 42 38 24 17 67 Move 7530 | 64 480 1432 195 692 844 486 432 719 636 257 221 1072 Hop 14 | . . . . . . . . . . . . 14 Pick Up 141 | 9 12 12 11 3 21 11 11 20 9 2 2 18 Fast Attach 138 | 5 5 2 7 10 7 5 7 25 22 4 3 36 Attach 63 | 1 . 3 1 . 3 3 8 19 2 2 2 19 Detach 47 | . 5 1 2 1 1 2 5 10 4 . 2 14 Swap 179 | 2 15 24 13 16 19 22 8 24 14 1 2 19 Drop 179 | . 13 16 14 15 19 12 16 17 22 8 3 24 Fire 447 | 21 29 31 22 51 68 32 7 71 26 9 6 74 Melee 167 | . . 32 1 3 5 9 16 17 20 8 . 56 Ram . | . . . . . . . . . . . . . Kick . | . . . . . . . . . . . . . Crush 6 | . . . 1 1 1 . . . . . 2 1 Escape Stasis . | . . . . . . . . . . . . . Rewire . | . . . . . . . . . . . . . Trap 106 | . 43 . . 4 . 59 . . . . . . Miscellaneous 11 | . . . . 1 2 4 2 2 . . . . Route ------- -11/Scrapyard -10/Materials (discovered 5 exits: [*Mat x3] / [Min] / *Sub) -10/Subcaves (discovered 3 exits: *Mat / [*Rec] / [*Scr]) -8/Materials -8/Storage -7/Factory -6/Factory (discovered 3 exits: *Fac / Low x2) -5/Factory (discovered 4 exits: *Fac x4) -4/Factory (discovered 3 exits: *Res / Upp x2) -3/Research -3/Testing -2/Research -1/Access History --------- Turn | Location | Event 7 | -11/Scrapyard | Discovered new exit (range 13) 162 | -11/Scrapyard | Entered Materials 191 | -10/Materials | Central database locked down 296 | -10/Materials | Discovered new exit (range 12) 305 | -10/Materials | Build established: Mutant 386 | -10/Materials | Discovered new exit (range 7) 636 | -10/Materials | Discovered new exit (range 10) 1220 | -10/Materials | Discovered new exit (range 11) 1240 | -10/Materials | Discovered new exit (range 7) 1250 | -10/Materials | Entered Subcaves 1251 | -10/Subcaves | Approached by a straggling Scientist 1365 | -10/Subcaves | Learned Materials emergency access door positions 1408 | -10/Subcaves | Visited triangular shrine 1420 | -10/Subcaves | Found Prototype Device 1420 | -10/Subcaves | Identified V3-11A's Pendant 1425 | -10/Subcaves | Befriended Subdweller 1437 | -10/Subcaves | Discovered new exit (range 13) 1485 | -10/Subcaves | Befriended Subdweller 1485 | -10/Subcaves | Befriended Subdweller 1570 | -10/Subcaves | Learned Materials emergency access door positions 1844 | -10/Subcaves | Learned location of Zion (-7) 1844 | -10/Subcaves | Met a Zionite searching for "candidates" 2084 | -10/Subcaves | Visited 4L-MR0's lab 2102 | -10/Subcaves | Found Gun Armor 2981 | -10/Subcaves | A swath of the cavern ceiling suddenly collapsed 3055 | -10/Subcaves | Befriended Subdweller 3089 | -10/Subcaves | Disturbed a concealed Subdweller 3090 | -10/Subcaves | Befriended Subdweller 3304 | -10/Subcaves | Shifting Twisted Machinery released Spk. Treads 3495 | -10/Subcaves | Befriended Subdweller 3506 | -10/Subcaves | A Subdweller sparked back to life 3510 | -10/Subcaves | Befriended Subdweller 3510 | -10/Subcaves | Befriended Subdweller 3510 | -10/Subcaves | Befriended Subdweller 3538 | -10/Subcaves | Lost 4 allies 3835 | -10/Subcaves | Shifting Twisted Machinery released Sub. Optics 3862 | -10/Subcaves | Shifting Twisted Machinery released Shrapnel Trap 4032 | -10/Subcaves | Discovered new exit (range 11) 4045 | -10/Subcaves | Lost 3 allies 4059 | -10/Subcaves | Found Cargo Legs 4239 | -10/Subcaves | Attached Gun Armor, gained temporary slots: Weapon x2 4246 | -10/Subcaves | Entered Materials 4246 | -8/Materials | Evolved 4 slots: Utility x2, Weapon x2 4247 | -8/Materials | Identified exit to Storage 4721 | -8/Materials | Garrison activated, responded to threat 4875 | -8/Materials | Destroyed 8 combat bots 4902 | -8/Materials | Entered Storage 4974 | -8/Storage | Repaired Broken Hvy. Assault Rifle 5539 | -8/Storage | Build established: Scavenger-Gunner 5703 | -8/Storage | Discovered new exit (range 16) 6142 | -8/Storage | Garrison activated, responded to threat 6442 | -8/Storage | Garrison activated, responded to threat 6560 | -8/Storage | Build established: Scavenger-Tank 6700 | -8/Storage | Repaired Lgt. Armor Plating 6762 | -8/Storage | Repaired Broken Gauss Rifle 6929 | -8/Storage | Entered Factory 6929 | -7/Factory | Evolved 2 slots: Weapon x2 7155 | -7/Factory | Repaired Imp. Assault Rifle 7216 | -7/Factory | Repaired Enh. Autogun 7237 | -7/Factory | Build established: Scavenger-Executioner 8028 | -7/Factory | Garrison activated, responded to threat 8345 | -7/Factory | Garrison activated, responded to threat 8495 | -7/Factory | Garrison activated, responded to threat 8785 | -7/Factory | Found Powered Armor 9069 | -7/Factory | Discovered new exit (range 4) 9146 | -7/Factory | Entered another Factory area 9146 | -6/Factory | Evolved 2 slots: Weapon x2 10248 | -6/Factory | Identified exit to Lower Caves 10264 | -6/Factory | Garrison activated, responded to threat 10606 | -6/Factory | Discovered new exit (range 5) 10615 | -6/Factory | Entered another Factory area 10615 | -5/Factory | Evolved 2 slots: Weapon x2 10646 | -5/Factory | Identified exit to Factory 11150 | -5/Factory | Central database locked down 11328 | -5/Factory | Garrison activated, responded to threat 11463 | -5/Factory | Build established: Scientist-Executioner 11690 | -5/Factory | Entered another Factory area 11690 | -4/Factory | Evolved 2 slots: Weapon x2 11964 | -4/Factory | Garrison activated, responded to threat 12243 | -4/Factory | Central database locked down 12409 | -4/Factory | Lost 11 parts (1p1n1u8w) 12613 | -4/Factory | Spotted B-86 Titan 12669 | -4/Factory | Garrison activated, responded to threat 12743 | -4/Factory | Build established: Scavenger-Executioner 12755 | -4/Factory | Lost 5 parts (1p1n3w) 12947 | -4/Factory | Lost 3 parts (1n1u1w) 13035 | -4/Factory | Lost 3 parts (2n1w) 13190 | -4/Factory | First assault squad dispatched 13448 | -4/Factory | Build established: Executioner 13496 | -4/Factory | Identified exit to Upper Caves 13604 | -4/Factory | Discovered new exit (range 14) 13620 | -4/Factory | Identified exit to Research 13621 | -4/Factory | Entered Research 13621 | -3/Research | Evolved 2 slots: Weapon x2 14261 | -3/Research | Build established: Scavenger-Executioner 14715 | -3/Research | Lost 6 parts (6w) 14899 | -3/Research | Discovered new exit (range 6) 14914 | -3/Research | Entered Testing 14950 | -3/Testing | Found Prototype Ballistic Cannon 14950 | -3/Testing | Identified Omega Cannon 15188 | -3/Testing | Found Prototype Energy Gun 15188 | -3/Testing | Identified Warp Gun 15362 | -3/Testing | Discovered new exit (range 5) 15374 | -3/Testing | Scanned by Researcher 15405 | -3/Testing | Entered Research 15405 | -2/Research | Evolved 2 slots: Weapon x2 15755 | -2/Research | Discovered new exit (range 11) 15810 | -2/Research | Entered Access 15810 | -1/Access | Evolved 2 slots: Weapon x2 16170 | -1/Access | Spotted B-99 Colossus 16274 | -1/Access | Spotted B-99 Colossus 16353 | -1/Access | Destroyed B-99 Colossus 16354 | -1/Access | Lost 6 parts (6w) 16428 | -1/Access | Lost 3 parts (3w) 16675 | -1/Access | Lost 8 parts (1n2u5w) 16833 | -1/Access | Lost 11 parts (2p1n2u6w) 17010 | -1/Access | Core integrity fell below 50% 17054 | -1/Access | Lost 3 parts (1n2w) 17262 | -1/Access | Lost 3 parts (1p2w) 17352 | -1/Access | Lost 10 parts (1p1n4u4w) 17412 | -1/Access | Core integrity fell below 20% 17485 | -1/Access | Spotted B-99 Colossus 17547 | -1/Access | System corruption reached 10% 17554 | -1/Access | Released all parts (4) 17554 | -1/Access | Core destroyed Last Messages --------------- 17543_ K-01 Serf cleans the Signal Shield. 17545_ Penetrated by Slug. 17551_ Gravity Neutralizer destroyed. 17551_ Backup Plating VII destroyed. 17551_ Knocked back. 17551_ H-88 Terminator system corrupted by crushing effect. 17552_ H-88 Terminator system terminally corrupted. 17552_ Field Propulsion Array destroyed. 17553_ System corrupted: FCS attempts to trigger Backup Laser VII. 17553_ System corrupted: Backup Laser VII misfires. 17553_ R-10 Processor sends out distress signal. 17553_ Penetrated by Slug. 17554_ Released ECM Suite. 17554_ Released Backup Laser VII. 17554_ Released Backup Power VII. 17554_ Released Imp. Core Shielding. 17554_ Slammed into H-81 Overseer. 17554_ Destabilizing: Core damaged (-64). Map ----- +----------------------------------------------------+ | #???????????????????????????????????????????????? | | #???????????????????????????????????????????????? | | #???????????????????????????????????????????????? | | #???????????????????????????????????????????????? | | #???????????????????????????????????????????????? | | #???????????????????????????????????????????????? | | #???????????????????????????????????????????????? | | #???????????????????????????????????????????????? | | #???????????????????????????????????????????????? | | #???????????????????????????????????????????????? | | #???????????????????????????????????????????????? | | ##???????????????????????????????????????????????? | | ?????????????????????????????????????????????????? | | ?????????????????????????????????????????????????? | | ########?????????????????????????????????????????? | | ? ?????????????????????????????????????? | | ??? ???????????????????????????????? | | """"" #??????????????????????????????? | | """""""" #??????????????????????????????? | | """""""" #??????????????????????????????? | | """"" #???????????#??????????????????? | | #?????????? #??????????????????? | | * #????????? #??????????????????? | | ###################????????# ##?????????????????? | | #######################/### ! ####??????????????? | | hshshs@s! hR ""????????? | | Auwk s s%Hs u Rk "T????????? | | ################/########## ####### ???????? | | ?????????????? ????????#+###?????????????????? | | ???????????? ????????????????????????????? | | ???????????# #??????????????????????????? | | ???????????# #??????????????????????????? | | ???????????# ""T"" #??????????????????????????? | | ???????????# """"" #??????????????????????????? | | ???????????############??????????????????????????? | | ?????????????????????????????????????????????????? | | ?????????????????????????????????????????????????? | | ?????????????????????????????????????????????????? | | ?????????????????????????????????????????????????? | | ?????????????????????????????????????????????????? | | ?????????????????????????????????????????????????? | | ?????????????????????????????????????????????????? | | ?????????????????????????????????????????????????? | | ?????????????????????????????????????????????????? | | ?????????????????????????????????????????????????? | | ?????????????????????????????????????????????????? | | ?????????????????????????????????????????????????? | | ?????????????????????????????????????????????????? | | ?????????????????????????????????????????????????? | | ?????????????????????????????????????????????????? | +----------------------------------------------------+ Best States ------------- Heat Dissipation 107 Coolant Potential 100 Energy Generation 25 Energy Capacity 350 Matter Stores 300 Matter Capacity 300 Sight Range 21 Terrain Scan Density 10 ECM Strength 1 Jamming Range 14 EM Shielding 4 Corruption Block 8 Armor Coverage 450 Core Shielding 30 Weapon Shielding 66 Phase Shifting 15 Evasion (%) 62 Targeting Accuracy 8 Target Analysis 8 Core Analysis 6 Recoil Reduction 2 Salvage Targeting 2 Offensive Hacking 10 Item Schematics ----------------- Exp. Matter Compressor | -3/Testing | Archive Tactical Quantum Warhead | -3/Testing | Archive Exp. Optical Array | -3/Testing | Archive Prc. Phase Gun | -3/Testing | Archive Hvy. Tesla Rifle | -3/Testing | Archive Cld. Field Propulsion Drive | -3/Testing | Archive Robot Schematics ------------------ None Fabricated ------------ Nothing Repaired ---------- Hvy. Assault Rifle | 55% | -8/Storage | Broken Lgt. Armor Plating | 27% | -8/Storage Gauss Rifle | 49% | -8/Storage | Broken Imp. Assault Rifle | 64% | -7/Factory Enh. Autogun | 61% | -7/Factory Studied --------- Lgt. Treads | -8/Materials | Hacked Flak Gun | -8/Materials | Hacked Gauss Rifle | -7/Factory | Hacked Imp. Ion Engine | -7/Factory | Hacked Coil Gun | -5/Factory | Hacked Imp. Medium Treads | -5/Factory | Hacked Com. Wheel | -5/Factory | Hacked Arm. Treads | -5/Factory | Hacked KE Penetrator | -4/Factory | Hacked Centrium Wheel | -4/Factory | Hacked Railgun | -3/Testing | Hacked Arm. Heavy Treads | -1/Access | Hacked Alien Tech Used ----------------- None Achievements -------------- None Challenges ------------ None Game ------ Seed SegregatorScatterTreads Manual? 0 Play Time 01:57:34 Cumulative 2324.7 hours Start 2026.09.11 @ 14:58:00 End 2026.09.11 @ 16:55:31 Sessions 1 Manual Loads 0 Difficulty Rogue Special Mode None Game No. 1443 Rogue 1439 Adventurer 4 Explorer 0 Win Type - Total 338 Types 253/15/27/11/4/1/6/10/7/4 Lore% 99 Gallery% 96 Achievement% 95 Wizard Run 0 Options --------- Layout 2 ASCII 0 Keyboard 1 Movement Vi Keybinds 0 Fullscreen 0 Font 24/Terminus Map View 59x48 Zoom Use 0% Tactical HUD 1 Map Filters NONE Filters NONE Steam 1 RUN: a32d4a16-fcf1-4d40-a6df-c77b7e84ede6